Workbook

Sheet 2020 simplified model
B2: DISCLAIMER - NON BINDING MODEL : This simplified model aims at presenting the spirit of the French Tariff Calculation. It is not the detailled model that CRE uses (the detailled model contains several confidential parameters that can not be shown here)
B4: 1. Costs to recover an entry/exit split
B7: Allowed Revenue M€ | C7: 2020
B8: GRTgaz | C8: 1795.9
B9: Teréga | C9: 280.13
B12: Allowed Revenue Transport Services M€ | C12: 2020
B13: GRTgaz | C13: =770 -> 770
B14: Teréga | C14: =175 -> 175
B15: -
B16: Estimated other revenues (interruptible, backhaul, intra-annual, PEG, UIOLI) M€ | C16: 2020
C17: 41.91107
B19: =
B20: Total | C20: 903.08893
B22: Entry (34%) | C22: 306.0085141
B23: Exit (66%) | C23: 597.0804159
B25: 2. Firm capacities booking 2020 | E25: DISCLAIMER : A change in the subscribed capacities presented in this file, does not make it possible to calculate properly the tariff terms using this simplified model. In fact, a significant change in subscriptions would imply a change in the flow scenarios considered by CRE in its Reference price methodology and consequently a change in distances for transit and domestic consumption.
B27: MWh/d/y
B28: Entry Point
B29: PIR | C29: 1805400
B30: PITTM | C30: 994000
B31: PITS | C31: 2401400
B32: Exit Point
B33: PIR Oltingue | C33: 229500
B34: PIR Pirineos | C34: 148300
B35: PITS | C35: 1088400
B36: Exit to RN | C36: 4209500
B39: 3. Distance flow scenarios 2020
C42: km
B43: Exit at Oltingue | C43: 762
B44: Exit at Pirineos | C44: 1071.958
B45: Exit to RN | C45: 253.091821
B48: 4. simplified entry tariff calculation model
C50: PIR/PITTM distance spread | D50: 0.1 | F50: This spread stand for the difference of distance traveled by gas when coming from PITTM and PIR
C52: €/MWh/d per y | D52: M€ | F52: A dedicated CWD approach is applied to calculate the terms at the transport storage interface points (PITS) in the absence of flow scenarios that start and end at storage facilities. This approach includes a 80% rebate on distrances taken into account. For the sake of simplicity, this calculation is not reproduce in this simplified model
B53: PITS | C53: 9.169893443 | D53: =C31*C53/1000000 -> 22.02058211
B54: PIR | C54: =(C22-D53)*1000000/(C29+C30*(1-D50)) -> 105.1807155 | D54: =C54*C29/1000000 -> 189.8932638
B55: PITTM | C55: =C54*(1-D50) -> 94.66264399 | D55: =C55*C30/1000000 -> 94.09466813
D56: =SUM(D53:D55) -> 306.0085141
B59: 5. simplified exit tariff calculation model
C61: €/MWh/d per y | D61: M€
B62: PITS | C62: =C23/27.8658 -> 21.4269971 | D62: =C62*C35/1000000 -> 23.32114365
B63: PIR Oltingue | C63: =H94 -> 384.9463455 | D63: =C63*C33/1000000 -> 88.34518629
B64: PIR PIRINEOS | C64: =H93 -> 584.3148541 | D64: =C64*C34/1000000 -> 86.65389287
B65: Exit to RN | C65: =H95 -> 94.72863597 | D65: =C65*C36/1000000 -> 398.7601931
D66: =SUM(D62:D65) -> 597.0804159
B70: CRE has determined the exit tariff terms so that the unit costs for domestic and transit usage are identical.
B71: To calculate the capacity weighted exit terms and the unit costs, a Matrix of 4 equations with 4 unknonws is solved . These equations are given bellow :
B73: Equations
B75: eq1 (FR-ES unit cost) : | C75: Unit Cost = (PIR Dunkerque entry tariff term + Pirineos exit tariff term)/distance at Pirineos
B76: eq2 (FR-CH+ unit cost) : | C76: Unit Cost = (PIR Dunkerque entry tariff term + Oltingue exit tariff term)/distance at Oltingue
B77: eq3 (domestic unit cost): | C77: Unit Cost = (average entry term to supply domestic*PIR/PITTM ratio + Entry PITS term * PITS entry ratio + Exit PITS term * PITS exit ratio + domestic exit tariff term )/domestic distance
B78: eq4 (exit revenues): | C78: Pirineos exit tariff term* pirineos capacity + Oltingue exit tariff term * Oltingue capacity + Domestic exit term * domestic capacity = Total exist revenue - other revenues (i.e PITS exit revenues)
B82: A*X=B | C82: Input | J82: Inputs
C83: A | H83: X | J83: B
C84: =C44 -> 1071.958 | D84: -1 | E84: 0 | F84: 0 | H84: Unit cost | J84: =C54 -> 105.1807155
C85: =C43 -> 762 | D85: 0 | E85: -1 | F85: 0 | H85: Pirineos exit term | J85: =C54 -> 105.1807155
C86: =C45 -> 253.091821 | D86: 0 | E86: 0 | F86: -1 | H86: Oltingue exit term | J86: =N91*N87+C53*N88+C62*N89 -> 68.06289997 | M86: PIR vs. Transit Exit | N86: 1 | O86: Those ratios have to be used in order to represent, for example, that you need 0,57 GWh/d annual entry capcity to supply 1 GWh/d domestic when considering unit costs
C87: 0 | D87: =C34 -> 148300 | E87: =C33 -> 229500 | F87: =C36 -> 4209500 | H87: Domestic exit term | J87: =(C23-D62)*1000000 -> 573759272.3 | M87: PIR/PITTM vs. Exit RR | N87: =((C29+C30)-(C33+C34))/C36 -> 0.5752702221
M88: PITS Entry vs Exit RR. | N88: =C31/C36 -> 0.5704715524
H89: Results | M89: PITS Exit vs Exit RR. | N89: =C35/C36 -> 0.2585580235
B90: X= A-1*B | C90: A-1 | H90: X | J90: A*X
M91: average entry tariff term to supply domestic (€/MWh/d/year) | N91: =(C54*(C29-C33-C34)+(C55*C30)-3081606)/(C29-C33-C34+C30) -> 99.59078776 | O91: average tariff terms at PIR and PITTM weighted by entry capacities for domestic use (total capacities minus Dunkerque capacities used to transit)
C92: =MINVERSE(C84:F87) -> 0.0001059860771 | D92: 0.0001640175636 | E92: 0.003008418014 | F92: 7.146734799e-10 | H92: =MMULT(C92:F95,J84:J87) -> 0.6432113662 | J92: =MMULT(C84:F87,H92:H95) -> 105.1807155
C93: -0.8863873768 | D93: 0.1758199395 | E93: 3.224897757 | F93: 7.660999542e-07 | H93: 584.3148541 | J93: 105.1807155
C94: 0.08076139073 | D94: -0.8750186165 | E94: 2.292414526 | F94: 5.445811917e-07 | H94: 384.9463455 | J94: 68.06289997
C95: 0.02682420924 | D95: 0.04151150385 | E95: -0.2385940067 | F95: 1.808780124e-07 | H95: 94.72863597 | J95: 573759272.3

Sheet 2021 2023 Tariff evolution
A1: Tariff terms' evolution
A2: The tariff terms of each TSO are automatically adjusted on 1st April of every year, commencing 1st April 2021, by applying the following percentage change to all tariff terms in force on 31 March of year N: Z = CPI + X + k
A6: Tariffs will chaqnge ; • PIR : on 1st October of each year, with an initial movement of these terms as from 1st October 2020 ; •other tariffs : on 1st April of each year;
A12: Tariff terms' evolution
A13: CPI is the measure of inflation used for revising the schedule of tariffs on 1st April in year N, equating to the annual average change over the calendar year N-1 in the consumer price index excluding tobacco as calculated by the French national statistics office, INSEE, for all households in the whole of France
A14: X is the annual rate of change on the tariff structure set by CRE in its tariff deliberation, which incorporates the annual efficiency target that it has set for the operator
A15: k is the change in the tariff structure, expressed as a percentage, resulting from the clearing of the clawback account (CCN, subscription revenues, energy costs, etc.); k is between +2% and -2%. The references for the clawback account and the K estimation is annexed to CRE's Decision.
A17: 2020 | E17: 2021 | I17: 2022 | M17: 2023
F19: CPI | G19: 0.016 | J19: CPI | K19: 0.017 | N19: CPI | O19: 0.018
F20: X | G20: -0.003567571534 | J20: X | K20: -0.003567571534 | N20: X | O20: -0.003567571534
F21: K (+/- 2%) | G21: 0 | J21: K (+/- 2%) | K21: 0 | N21: K (+/- 2%) | O21: 0
F22: Total | G22: =SUM(G19:G21) -> 0.01243242847 | J22: Total | K22: =SUM(K19:K21) -> 0.01343242847 | N22: Total | O22: =SUM(O19:O21) -> 0.01443242847
A24: €/MWh/d/y | B24: Entry | C24: Exit | E24: €/MWh/d/y | F24: Entry | G24: Exit | I24: €/MWh/d/y | J24: Entry | K24: Exit | M24: €/MWh/d/y | N24: Entry | O24: Exit
A25: PIR Dunkerque | B25: 105.18 | E25: PIR Dunkerque | F25: =B25*(1+$G$22) -> 106.4876428 | I25: PIR Dunkerque | J25: =F25*(1+$K$22) -> 107.9180305 | M25: PIR Dunkerque | N25: =J25*(1+$O$22) -> 109.4755497
A26: PIR Virtualys | B26: 105.18 | C26: 41.85 | E26: PIR Virtualys | F26: =B26*(1+$G$22) -> 106.4876428 | G26: =C26*(1+$G$22) -> 42.37029713 | I26: PIR Virtualys | J26: =F26*(1+$K$22) -> 107.9180305 | K26: =G26*(1+$K$22) -> 42.93943312 | M26: PIR Virtualys | N26: =J26*(1+$O$22) -> 109.4755497 | O26: =K26*(1+$O$22) -> 43.55915341
A27: PIR Taisnières B | B27: 81.59 | E27: PIR Taisnières B | F27: =B27*(1+$G$22) -> 82.60436184 | I27: PIR Taisnières B | J27: 83.71393902 | M27: PIR Taisnières B | N27: 84.92213446
A28: PIR Obergailbach | B28: 105.18 | E28: PIR Obergailbach | F28: 106.4876428 | I28: PIR Obergailbach | J28: 107.9180305 | M28: PIR Obergailbach | N28: 109.4755497
A29: PIR Oltingue | B29: 105.18 | C29: 384.95 | E29: PIR Oltingue | F29: 106.4876428 | G29: =C29*(1+$G$22) -> 389.7358633 | I29: PIR Oltingue | J29: 107.9180305 | K29: =G29*(1+$K$22) -> 394.9709624 | M29: PIR Oltingue | N29: 109.4755497 | O29: =K29*(1+$O$22) -> 400.6713526
A30: PIR Pirineos | B30: 105.18 | C30: 584.31 | E30: PIR Pirineos | F30: 106.4876428 | G30: =C30*(1+$G$22) -> 591.5743923 | I30: PIR Pirineos | J30: 107.9180305 | K30: 599.520673 | M30: PIR Pirineos | N30: 109.4755497 | O30: 608.1732122
A31: PITTM Dunkerque | B31: 94.66 | E31: PITTM Dunkerque | F31: 95.83685368 | I31: PITTM Dunkerque | J31: 97.12417536 | M31: PITTM Dunkerque | N31: 98.52591307
A32: PITTM Montoir | B32: 94.66 | E32: PITTM Montoir | F32: 95.83685368 | I32: PITTM Montoir | J32: 97.12417536 | M32: PITTM Montoir | N32: 98.52591307
A33: PITTM Fos | B33: 94.66 | E33: PITTM Fos | F33: 95.83685368 | I33: PITTM Fos | J33: 97.12417536 | M33: PITTM Fos | N33: 98.52591307
A34: Exit to reg. Network | C34: 94.73 | E34: Exit to reg. Network | G34: 95.90772395 | I34: Exit to reg. Network | K34: 97.19599759 | M34: Exit to reg. Network | O34: 98.59877187
A35: PITS Nord-Ouest | B35: 9.17 | C35: 21.43 | E35: PITS Nord-Ouest | F35: 9.284005369 | G35: 21.69642694 | I35: PITS Nord-Ouest | J35: 9.408712107 | K35: 21.98786264 | M35: PITS Nord-Ouest | N35: 9.544502671 | O35: 22.3052009
A36: PITS Atlantique | B36: 9.17 | C36: 21.43 | E36: PITS Atlantique | F36: 9.284005369 | G36: 21.69642694 | I36: PITS Atlantique | J36: 9.408712107 | K36: 21.98786264 | M36: PITS Atlantique | N36: 9.544502671 | O36: 22.3052009
A37: PITS Sud-Est | B37: 9.17 | C37: 21.43 | E37: PITS Sud-Est | F37: 9.284005369 | G37: 21.69642694 | I37: PITS Sud-Est | J37: 9.408712107 | K37: 21.98786264 | M37: PITS Sud-Est | N37: 9.544502671 | O37: 22.3052009
A38: PITS Nord B | B38: 9.17 | C38: 21.43 | E38: PITS Nord B | F38: 9.284005369 | G38: 21.69642694 | I38: PITS Nord B | J38: 9.408712107 | K38: 21.98786264 | M38: PITS Nord B | N38: 9.544502671 | O38: 22.3052009
A39: PITS Nord-Est | B39: 9.17 | C39: 21.43 | E39: PITS Nord-Est | F39: 9.284005369 | G39: 21.69642694 | I39: PITS Nord-Est | J39: 9.408712107 | K39: 21.98786264 | M39: PITS Nord-Est | N39: 9.544502671 | O39: 22.3052009
A40: PITS Terega | B40: 9.17 | C40: 21.43 | E40: PITS Terega | F40: 9.284005369 | G40: 21.69642694 | I40: PITS Terega | J40: 9.408712107 | K40: 21.98786264 | M40: PITS Terega | N40: 9.544502671 | O40: 22.3052009
